bitfinex-derivatives/quotes_SOLF0:USTF0_20250109
["timestamp","ask_amount","ask_price","bid_price","bid_amount"]
[1736445218889,31.96554434,186.58,186.43,3.2574]
[1736445219089,2.6804,186.57,186.49,2.6814]
[1736445219382,38.98554434,186.61,186.43,3.2574]
[1736445219585,34.64544434,186.61,186.54,2.6807]
[1736445220386,2.6799,186.61,186.54,2.6807]
[1736445220788,2.68,186.6,186.52,2.6809]
[1736445221089,31.96554434,186.58,186.46,1.6353]
[1736445221388,31.96554434,186.55,186.43,3.2574]
[1736445221787,31.96554434,186.58,186.43,3.2574]
[1736445221987,34.64584434,186.58,186.51,2.681]
[1736445222295,63.93108868,186.52,186.22,23.09998032]
[1736445222494,31.96554434,186.44,186.36,2.6833]
[1736445222688,31.96554434,186.44,186.33,3.2777]
[1736445223089,34.64784434,186.44,186.38,2.683]
[1736445223296,31.96554434,186.44,186.33,3.2777]
[1736445224600,31.96554434,186.44,186.39,2.6829]
[1736445224802,63.93108868,186.4,186.23,2.05984785]
[1736445224998,31.96554434,186.34,186.23,2.05984785]
[1736445225395,31.96554434,186.34,186.24,1.5043]
[1736445226407,31.96554434,186.34,186.3,2.6841]
[1736445226703,31.96554434,186.34,186.24,1.5043]
[1736445227101,2.6838,186.33,186.23,1.07394082]
[1736445227405,31.96554434,186.3,186.22,1.5618]
[1736445227897,31.96554434,186.3,186.04,63.97348396]
[1736445227898,31.96554434,186.3,186.07,7.24]
[1736445228197,31.96554434,186.26,186.16,2.6861]
[1736445228402,31.96554434,186.22,186.11,1.07463328]
[1736445228998,31.96554434,186.22,186.18,2.6859]
[1736445229200,31.96554434,186.22,186.11,1.07463328]
[1736445229402,31.96554434,186.22,186.18,2.6858]
[1736445230102,31.96554434,186.25,186.11,1.07463328]
[1736445230702,31.96554434,186.25,186.2,2.6856]
[1736445230905,31.96554434,186.25,186.11,1.07463328]
[1736445231401,31.96554434,186.25,186.21,2.6855]
[1736445231805,31.96554434,186.25,186.11,1.07463328]
[1736445232004,7.2,186.38,186.16,31.96554434]
[1736445232198,31.96554434,186.35,186.19,31.96554434]
[1736445232404,34.64864434,186.38,186.31,2.684]
[1736445232599,31.96554434,186.38,186.22,31.96554434]
[1736445232803,31.96554434,186.38,186.23,0.98652198]
[1736445233008,34.64864434,186.38,186.27,2.6846]
[1736445233208,31.96554434,186.41,186.22,31.96554434]
[1736445233411,31.96554434,186.41,186.23,0.98640436]
[1736445233709,34.64864434,186.38,186.22,31.96554434]
[1736445234005,34.64864434,186.38,186.23,0.98644341]
[1736445234006,31.96554434,186.38,186.23,0.98644341]
[1736445234306,2.6833,186.37,186.23,0.98644341]
[1736445234605,31.96554434,186.39,186.23,0.98644341]
[1736445234817,31.96554434,186.32,186.2,3.1194]
[1736445235001,31.96554434,186.35,186.21,0.98663063]
[1736445236108,31.96554434,186.35,186.28,2.6844]
[1736445236311,7.18,186.36,186.2,3.1194]
[1736445236608,31.96554434,186.38,186.22,33.55294434]
[1736445237008,2.6832,186.37,186.22,33.55294434]
[1736445237212,2.6832,186.37,186.29,2.6842]
[1736445237411,2.6832,186.37,186.22,33.55294434]
[1736445237612,31.96554434,186.38,186.22,33.55294434]
[1736445237613,31.96554434,186.38,186.23,0.98661809]
[1736445237811,31.96554434,186.38,186.3,2.6841]
[1736445238111,31.96554434,186.38,186.22,33.55294434]
[1736445238406,31.96554434,186.38,186.23,0.9865333]
[1736445238612,31.96554434,186.3,186.2,3.1194]
[1736445238807,34.64934434,186.33,186.2,3.1194]
[1736445239008,31.96554434,186.33,186.22,2.6853]
[1736445239208,31.96554434,186.33,186.2,3.1194]
[1736445239409,2.6842,186.31,186.2,3.1194]
[1736445239709,31.96554434,186.33,186.24,2.685]
[1736445240106,31.96554434,186.33,186.2,3.1194]
[1736445240413,31.96554434,186.36,186.2,3.1194]
[1736445241814,31.96554434,186.36,186.21,0.98661116]
[1736445242014,2.6838,186.33,186.27,2.6846]
[1736445242914,2.6837,186.34,186.2,3.1194]
[1736445243104,31.96554434,186.36,186.21,0.98662718]
[1736445243309,2.6835,186.35,186.25,2.6848]
[1736445243615,31.96554434,186.36,186.2,3.1194]
[1736445243813,34.64844434,186.39,186.33,2.6837]
[1736445244009,31.96554434,186.41,186.25,31.96554434]
[1736445244312,31.96554434,186.44,186.25,31.96554434]
[1736445244514,2.6823,186.43,186.37,2.6831]
[1736445244711,31.96554434,186.44,186.28,31.96554434]
[1736445244906,2.6826,186.42,186.28,31.96554434]
[1736445245112,31.96554434,186.44,186.28,31.96554434]
[1736445245416,31.96554434,186.44,186.37,2.6831]
[1736445245809,2.6822,186.45,186.28,39.00554434]
[1736445246013,2.6822,186.45,186.37,2.6831]
[1736445246214,2.6822,186.44,186.37,2.6831]
[1736445246410,31.96554434,186.47,186.28,39.00554434]
[1736445246615,31.96554434,186.47,186.38,2.683]
[1736445246815,2.6822,186.44,186.38,2.683]
[1736445247216,31.96554434,186.47,186.39,2.6828]
[1736445247520,31.96554434,186.44,186.27,38.96554434]
[1736445247816,31.96554434,186.47,186.3,31.96554434]
[1736445248019,31.96554434,186.47,186.31,5.72395846]
[1736445248217,7.0,186.5,186.33,31.96554434]
[1736445248218,31.96554434,186.5,186.33,31.96554434]
[1736445248420,34.64694434,186.5,186.34,7.0]
[1736445248616,31.96554434,186.53,186.36,31.96554434]
[1736445248808,31.96554434,186.57,186.46,2.6819]
[1736445249118,31.96554434,186.57,186.39,31.96554434]
[1736445249319,31.96554434,186.57,186.42,31.96554434]
[1736445249617,147.2384525,186.71,186.45,31.96554434]
[1736445249813,31.96554434,186.63,186.45,31.96554434]
[1736445250018,31.96554434,186.63,186.46,0.98527949]
[1736445250221,31.96554434,186.63,186.48,31.96554434]
[1736445250418,2.6792,186.65,186.58,2.6802]
[1736445250720,31.96554434,186.69,186.52,6.98]
[1736445250919,31.96554434,186.66,186.52,8.4967]
[1736445252217,31.96554434,186.69,186.52,8.4967]
[1736445253012,31.96554434,186.66,186.52,8.4967]
[1736445253215,2.6792,186.65,186.52,8.4967]
[1736445253623,31.96554434,186.66,186.52,8.4967]
[1736445253816,34.64424434,186.69,186.61,2.6797]
[1736445254022,31.96554434,186.69,186.53,31.96554434]
[1736445254224,31.96554434,186.69,186.52,8.4967]
[1736445254623,31.96554434,186.69,186.53,31.96554434]
[1736445255016,31.96554434,186.72,186.54,3.1351]
[1736445255420,2.679,186.67,186.54,3.1351]
[1736445255721,31.96554434,186.72,186.54,3.1351]
[1736445256221,31.96554434,186.63,186.41,5.365]
[1736445256421,31.96554434,186.6,186.44,31.96554434]
[1736445256715,31.96554434,186.6,186.45,2.57866426]
[1736445256920,31.96554434,186.63,186.47,31.96554434]
[1736445257119,31.96554434,186.69,186.53,31.96554434]
[1736445257520,2.679,186.67,186.54,4.7285]
[1736445257820,31.96554434,186.78,186.62,31.96554434]
[1736445258024,31.96554434,186.81,186.65,31.96554434]
[1736445258223,31.96554434,186.84,186.68,31.96554434]
[1736445258422,31.96554434,186.84,186.69,4.8102]
[1736445258717,141.8817525,186.86,186.74,31.96554434]
[1736445259327,31.96554434,186.87,186.71,31.96554434]
[1736445259514,31.96554434,186.87,186.7,6.96]
[1736445259721,31.96554434,186.87,186.72,0.98392533]
[1736445259922,2.6763,186.86,186.79,2.6772]
[1736445260228,31.96554434,186.9,186.73,31.96554434]
[1736445260420,31.96554434,186.87,186.7,31.96554434]
[1736445260621,31.96554434,186.84,186.69,4.8102]
[1736445260917,31.96554434,186.81,186.7,2.6784]
[1736445261422,31.96554434,186.81,186.72,2.6781]
[1736445261625,31.96554434,186.84,186.72,2.6781]
[1736445261826,31.96554434,186.84,186.66,6.96]
[1736445262024,2.6769,186.81,186.74,2.6778]
[1736445262226,31.96554434,186.84,186.68,31.96554434]
[1736445262526,2.6764,186.85,186.76,2.6774]
[1736445262717,31.96554434,186.87,186.71,31.96554434]
[1736445262923,31.96554434,186.9,186.74,31.96554434]
[1736445264026,31.96554434,186.9,186.75,2.55226776]
[1736445264227,31.96554434,186.9,186.75,1.5685]
[1736445265630,31.96554434,186.9,186.69,3.1479]
[1736445265631,31.96554434,186.84,186.69,3.1479]
[1736445265827,31.96554434,186.84,186.73,2.678]
[1736445266228,31.96554434,186.84,186.7,1.6419]
[1736445267027,31.96554434,186.87,186.7,1.6419]
[1736445267233,31.96554434,186.81,186.7,1.6419]
[1736445267433,31.96554434,186.81,186.71,2.6782]
[1736445267628,6.92,186.91,186.65,1.5904]
[1736445267629,31.96554434,186.78,186.65,1.5904]
[1736445267928,31.96554434,186.81,186.65,1.5904]
[1736445268135,2.6773,186.79,186.66,0.98426398]
[1736445268436,31.96554434,186.78,186.62,31.96554434]
[1736445268629,2.678,186.73,186.66,2.6789]
[1736445268834,31.96554434,186.75,186.6,6.9]
[1736445269237,31.96554434,186.72,186.64,2.6793]
[1736445269733,31.96554434,186.66,186.5,31.96554434]
[1736445269933,31.96554434,186.63,186.51,2.5876178]
[1736445270138,31.96554434,186.63,186.51,1.6026]
[1736445270931,31.96554434,186.66,186.56,2.6803]
[1736445271131,31.96554434,186.66,186.51,1.6026]
[1736445271533,2.6793,186.64,186.55,2.6805]
[1736445271738,31.96554434,186.63,186.51,1.6026]
[1736445272132,31.96554434,186.6,186.49,1.6453]
[1736445273036,31.96554434,186.6,186.53,2.6809]
[1736445273239,31.96554434,186.63,186.49,1.6453]
[1736445273538,31.96554434,186.63,186.47,31.96554434]
[1736445273739,2.6796,186.62,186.52,2.681]
[1736445273938,31.96554434,186.6,186.48,1.5649]
[1736445274139,31.96554434,186.6,186.45,1.5562]
[1736445274336,31.96554434,186.54,186.38,7.10219404]
[1736445275040,31.96554434,186.53,186.38,7.10219404]
[1736445275235,31.96554434,186.5,186.38,7.10219404]
[1736445275539,31.96554434,186.47,186.31,1.6516]
[1736445275742,31.96554434,186.47,186.32,0.98593054]
[1736445275938,34.64734434,186.47,186.39,2.6828]
[1736445276134,31.96554434,186.5,186.33,32.95147]
[1736445276330,31.96554434,186.5,186.34,0.98589675]
[1736445276839,31.96554434,186.47,186.34,0.98589675]
[1736445277040,31.96554434,186.51,186.35,0.98589675]
[1736445277232,31.96554434,186.51,186.42,2.6824]
[1736445277437,31.96554434,186.51,186.34,31.96554434]
[1736445277633,2.6806,186.55,186.4,31.96554434]
[1736445277839,31.96554434,186.57,186.4,31.96554434]
[1736445278136,2.6801,186.59,186.5,2.6813]
[1736445278336,2.6801,186.59,186.43,31.96554434]
[1736445278532,2.6801,186.59,186.44,2.59831545]
[1736445278739,2.6802,186.58,186.45,0.98541545]
[1736445278933,2.6802,186.58,186.44,1.6129]
[1736445279137,31.96554434,186.6,186.44,1.6129]
[1736445279442,2.6803,186.57,186.49,2.6814]
[1736445279943,31.96554434,186.63,186.46,31.96554434]
[1736445280540,2.6798,186.61,186.46,31.96554434]
[1736445280744,31.96554434,186.63,186.46,31.96554434]
[1736445281845,31.96554434,186.57,186.44,1.6129]
[1736445282048,31.96554434,186.57,186.37,31.96554434]
[1736445282049,31.96554434,186.51,186.37,31.96554434]
[1736445282239,31.96554434,186.51,186.42,2.6824]
[1736445282538,31.96554434,186.48,186.32,4.6253]
[1736445282744,31.96554434,186.45,186.33,0.98585937]
[1736445283244,31.96554434,186.45,186.32,3.0872]
[1736445283438,31.96554434,186.48,186.33,0.98608078]
[1736445283638,31.96554434,186.45,186.32,3.0872]
[1736445283939,31.96554434,186.45,186.33,0.98608182]
[1736445284135,31.96554434,186.48,186.33,0.98608182]
[1736445284337,2.6815,186.49,186.42,2.6824]
[1736445284640,38.78554434,186.51,186.36,31.96554434]
[1736445284838,2.6814,186.5,186.42,2.6824]
[1736445285142,31.96554434,186.48,186.32,3.0872]
[1736445285347,31.96554434,186.48,186.33,0.9860431]
[1736445285540,31.96554434,186.48,186.4,2.6827]
[1736445285738,6.82,186.51,186.33,32.95158744]
[1736445285739,38.78554434,186.51,186.33,31.96554434]
[1736445285942,38.78554434,186.51,186.34,0.98592029]
[1736445286135,31.96554434,186.51,186.36,31.96554434]
[1736445286336,31.96554434,186.54,186.37,0.98592029]
[1736445286644,31.96554434,186.66,186.47,2.6816]
[1736445286645,2.6807,186.55,186.47,2.6816]
[1736445286846,31.96554434,186.54,186.39,31.96554434]
[1736445287039,31.96554434,186.54,186.38,1.5377]
[1736445287040,31.96554434,186.51,186.38,1.5377]
[1736445287747,2.6813,186.5,186.41,2.6825]
[1736445287946,31.96554434,186.51,186.38,1.5377]
[1736445288242,31.96554434,186.51,186.34,6.84]
[1736445288441,31.96554434,186.48,186.34,6.84]
[1736445288642,31.96554434,186.48,186.32,3.0872]
[1736445288838,2.6821,186.45,186.38,2.683]
[1736445289036,31.96554434,186.48,186.32,3.0872]
[1736445289942,31.96554434,186.48,186.33,0.9860664]
[1736445290246,31.96554434,186.51,186.33,32.95161074]
[1736445290542,2.6816,186.49,186.39,2.6829]
[1736445290747,31.96554434,186.46,186.32,3.0872]
[1736445292339,2.6822,186.45,186.32,3.0872]
[1736445292547,31.96554434,186.49,186.33,0.98605864]
[1736445292745,31.96554434,186.49,186.34,31.96554434]
[1736445293049,31.96554434,186.49,186.32,3.0872]
[1736445293349,2.6819,186.47,186.4,2.6827]
[1736445294644,2.6822,186.44,186.32,3.0872]
[1736445294849,31.96554434,186.46,186.32,3.0872]
[1736445295241,2.6825,186.42,186.35,2.6834]
[1736445295442,31.96554434,186.46,186.32,3.0872]
[1736445295646,31.96554434,186.5,186.32,3.0872]
[1736445295849,31.96554434,186.5,186.33,0.98602409]
[1736445296049,31.96554434,186.5,186.34,31.96554434]
[1736445296450,2.6818,186.47,186.41,2.6826]
[1736445296649,37.32624434,186.57,186.37,31.96554434]
[1736445296650,31.96554434,186.53,186.37,31.96554434]
[1736445296953,2.6816,186.48,186.42,2.6823]
[1736445297146,31.96554434,186.53,186.37,31.96554434]
[1736445297452,31.96554434,186.56,186.38,0.98568874]
[1736445298350,2.6806,186.56,186.5,2.6813]
[1736445298551,31.96554434,186.59,186.44,31.96554434]
[1736445298946,2.6805,186.56,186.51,2.6811]
[1736445299144,31.96554434,186.59,186.44,31.96554434]
[1736445299453,2.6803,186.57,186.49,2.6814]
[1736445299651,2.6803,186.57,186.44,31.96554434]
[1736445300152,6.74,186.61,186.44,31.96554434]
[1736445300453,31.96554434,186.66,186.5,31.96554434]
[1736445300951,31.96554434,186.69,186.53,31.96554434]
[1736445301152,31.96554434,186.72,186.56,31.96554434]
[1736445301346,31.96554434,186.75,186.59,31.96554434]
[1736445301548,31.96554434,186.69,186.58,2.68]
[1736445301750,31.96554434,186.69,186.54,9.8478]
[1736445301954,31.96554434,186.66,186.54,9.8478]
[1736445302152,31.96554434,186.68,186.54,9.8478]
[1736445302556,2.6794,186.64,186.57,2.6802]
[1736445302853,31.96554434,186.68,186.54,9.8478]
[1736445303252,2.679,186.66,186.59,2.68]
[1736445303446,31.96554434,186.71,186.54,9.8478]
[1736445303747,2.6785,186.7,186.64,2.6793]
[1736445303952,31.96554434,186.78,186.61,31.96554434]
[1736445304153,31.96554434,186.81,186.64,31.96554434]
[1736445304357,2.677,186.8,186.73,2.6779]
[1736445304546,141.8817525,186.84,186.7,31.96554434]
[1736445304751,141.8817525,186.86,186.73,31.96554434]
[1736445304945,141.8817525,186.86,186.7,31.96554434]
[1736445305457,2.6769,186.81,186.74,2.6778]
[1736445305651,31.96554434,186.84,186.67,31.96554434]
[1736445305847,31.96554434,186.84,186.7,31.96554434]
[1736445306551,34.64204434,186.84,186.76,2.6776]
[1736445306749,31.96554434,186.87,186.65,9.9007]
[1736445306957,31.96554434,186.81,186.66,33.93358201]
[1736445307152,31.96554434,186.84,186.66,32.94954785]
[1736445307456,31.96554434,186.84,186.69,31.96554434]
[1736445307645,31.96554434,186.84,186.74,2.6778]
[1736445307646,2.6768,186.82,186.74,2.6778]
[1736445307849,31.96554434,186.84,186.74,2.6778]
[1736445308157,2.6767,186.82,186.73,2.6779]
[1736445308453,31.96554434,186.84,186.66,31.96554434]
[1736445308653,2.6773,186.78,186.72,2.6782]
[1736445308855,31.96554434,186.81,186.66,31.96554434]
[1736445309049,31.96554434,186.84,186.66,31.96554434]
[1736445309249,2.6767,186.83,186.73,2.6779]
[1736445309451,31.96554434,186.84,186.66,31.96554434]
[1736445309853,31.96554434,186.78,186.65,3.1807]
[1736445310847,2.6776,186.76,186.65,3.1807]
[1736445312254,2.6776,186.76,186.68,2.6787]
[1736445312952,2.6777,186.75,186.68,2.6787]
[1736445313352,31.96554434,186.78,186.68,2.6787]
[1736445313553,2.6774,186.78,186.7,2.6784]
[1736445314058,31.96554434,186.81,186.75,2.6777]
[1736445314059,2.677,186.81,186.75,2.6777]
[1736445314353,31.96554434,186.87,186.69,31.96554434]
[1736445314550,2.6769,186.82,186.69,31.96554434]
[1736445314755,31.96554434,186.81,186.66,31.96554434]
[1736445314951,31.96554434,186.78,186.65,3.1807]
[1736445315146,31.96554434,186.78,186.67,2.6788]
[1736445315349,31.96554434,186.78,186.65,3.1807]
[1736445316351,2.6777,186.76,186.67,2.6789]
[1736445316561,31.96554434,186.78,186.67,2.6789]
[1736445316760,31.96554434,186.78,186.65,3.1807]
[1736445317365,2.6778,186.75,186.68,2.6786]
[1736445317553,31.96554434,186.78,186.65,3.1807]
[1736445318052,31.96554434,186.83,186.66,31.96554434]
[1736445318455,31.96554434,186.83,186.71,2.6783]
[1736445318863,31.96554434,186.8,186.65,3.1807]
[1736445319065,31.96554434,186.8,186.66,31.96554434]
[1736445319260,38.52554434,186.84,186.67,0.98418854]
[1736445320261,31.96554434,186.84,186.67,0.98418854]
[1736445320958,2.6773,186.79,186.73,2.678]
[1736445321159,31.96554434,186.84,186.73,2.678]
[1736445321363,31.96554434,186.84,186.7,2.6783]
[1736445321560,31.96554434,186.93,186.68,6.52]
[1736445321857,2.6765,186.84,186.73,31.96554434]
[1736445322062,31.96554434,186.9,186.73,31.96554434]
[1736445322265,31.96554434,186.87,186.73,31.96554434]
[1736445322465,2.6769,186.81,186.7,31.96554434]
[1736445322661,31.96554434,186.87,186.7,31.96554434]
[1736445322967,2.6771,186.8,186.7,31.96554434]
[1736445323159,31.96554434,186.87,186.7,31.96554434]
[1736445323361,2.6771,186.8,186.74,2.6779]
[1736445323663,31.96554434,186.87,186.71,1.6499]
[1736445324255,31.96554434,186.87,186.75,2.6776]
[1736445324564,31.96554434,186.87,186.71,1.6499]
[1736445324867,2.6768,186.82,186.77,2.6774]
[1736445325364,31.96554434,186.87,186.71,1.6499]
[1736445325561,2.6769,186.82,186.76,2.6776]
[1736445325754,31.96554434,186.87,186.73,31.96554434]
[1736445325963,31.96554434,186.9,186.73,31.96554434]
[1736445326166,31.96554434,186.93,186.76,31.96554434]
[1736445326367,31.96554434,186.93,186.77,3.143]
[1736445326563,31.96554434,186.93,186.83,2.6765]
[1736445327163,31.96554434,186.93,186.79,31.96554434]
[1736445327362,37.31344434,187.02,186.79,31.96554434]
[1736445327363,31.96554434,186.96,186.79,31.96554434]
[1736445327561,31.96554434,186.96,186.82,31.96554434]
[1736445327757,6.44,186.99,186.8,1.5357]
[1736445327758,31.96554434,186.93,186.8,1.5357]
[1736445328167,2.676,186.88,186.83,2.6765]
[1736445328362,31.96554434,186.93,186.83,2.6765]
[1736445328562,31.96554434,186.93,186.77,9.603]
[1736445328768,31.96554434,186.9,186.77,3.143]
[1736445329359,31.96554434,186.9,186.74,1.5114]
[1736445329558,31.96554434,186.9,186.74,4.5759]
[1736445329767,2.6766,186.83,186.79,2.677]
[1736445329968,31.96554434,186.9,186.79,2.677]
[1736445330370,2.6767,186.82,186.79,2.677]
[1736445330667,31.96554434,186.9,186.79,2.677]
[1736445330861,31.96554434,186.9,186.78,2.6773]
[1736445331366,2.6767,186.82,186.74,3.0116]
[1736445331567,31.96554434,186.9,186.74,3.0116]
[1736445332070,2.6765,186.84,186.79,2.677]
[1736445332269,2.6765,186.84,186.74,3.0116]
[1736445332971,31.96554434,186.87,186.74,3.0116]
[1736445333172,31.96554434,186.84,186.7,1.619]
[1736445333665,2.6769,186.81,186.7,33.58454434]
[1736445333872,31.96554434,186.84,186.7,33.58454434]
[1736445334069,31.96554434,186.84,186.75,2.6776]
[1736445334277,2.677,186.8,186.7,33.58454434]
[1736445335068,2.677,186.8,186.75,2.6776]
[1736445335268,2.6768,186.82,186.7,21.43838041]
[1736445335465,19.81938041,186.87,186.7,21.43838041]
[1736445336575,2.6768,186.82,186.77,2.6774]
[1736445337073,2.6768,186.82,186.78,2.6773]
[1736445337278,2.6766,186.83,186.78,2.6773]
[1736445337479,141.8817525,186.95,186.76,19.81938041]
[1736445337776,2.6756,186.9,186.79,19.81938041]
[1736445337977,161.70113291,186.95,186.8,3.0945]
[1736445338180,19.81938041,186.95,186.84,2.6764]
[1736445338376,19.81938041,186.95,186.8,3.0945]
[1736445338574,6.34,186.99,186.8,3.0945]
[1736445338575,6.34,186.99,186.82,19.81938041]
[1736445338971,141.8817525,187.0,186.85,19.81938041]
[1736445339178,141.8817525,187.0,186.88,19.81938041]
[1736445339370,141.8817525,187.0,186.91,19.81938041]
[1736445339572,19.81938041,187.08,186.94,19.81938041]
[1736445339573,141.8817525,187.02,186.94,19.81938041]
[1736445340384,141.8817525,187.02,186.97,2.6745]
[1736445340582,141.8817525,187.02,186.94,19.81938041]
[1736445340781,19.81938041,187.11,186.94,19.81938041]
[1736445340986,2.6739,187.03,186.95,2.6749]
[1736445341179,19.81938041,187.11,186.94,19.81938041]
[1736445341380,32.12135187,187.11,186.95,32.12135187]
[1736445341581,32.12135187,187.11,186.95,33.10424831]
[1736445341780,32.12135187,187.11,186.95,32.12135187]
[1736445342182,32.12135187,187.14,186.98,32.12135187]
[1736445342381,32.12135187,187.17,187.01,32.12135187]
[1736445342583,174.00310437,187.2,187.04,32.12135187]
[1736445342881,2.6723,187.13,187.04,34.79475187]
[1736445343085,32.12135187,187.14,186.99,1.6277]
[1736445343988,38.42135187,187.17,187.01,32.12135187]
[1736445344181,38.42135187,187.17,186.99,1.6277]
[1736445344182,32.12135187,187.14,186.99,1.6277]
[1736445344778,32.12135187,187.11,186.99,1.6277]
[1736445345283,6.3,187.17,186.99,1.6277]
[1736445345284,32.12135187,187.14,186.99,1.6277]
[1736445346491,2.6728,187.1,187.0,2.6741]
[1736445346685,32.12135187,187.14,186.99,1.6277]
[1736445347792,32.12135187,187.14,186.97,6.32]
[1736445348392,32.12135187,187.14,186.99,2.6743]
[1736445348793,2.6734,187.06,186.98,2.6743]
[1736445349094,32.12135187,187.14,186.97,6.32]
[1736445349289,2.6733,187.07,186.99,2.6743]
[1736445349594,32.12135187,187.11,186.97,6.32]
[1736445349889,2.6739,187.02,186.96,1.4884]
[1736445350388,32.12135187,187.08,186.92,35.21585187]
[1736445350689,32.12135187,187.05,186.92,3.0945]
[1736445351197,2.674,187.02,186.92,5.7697]
[1736445351391,32.12135187,187.05,186.92,5.7697]
[1736445352089,2.674,187.02,186.92,5.7697]
[1736445352298,32.12135187,187.05,186.92,5.7697]
[1736445352895,2.6748,186.96,186.89,2.6757]
[1736445353190,32.12135187,187.02,186.86,3.2717]
[1736445353393,2.675,186.94,186.88,2.6758]
[1736445353790,32.12135187,186.99,186.86,3.2717]
[1736445353995,32.12135187,186.96,186.81,32.12135187]
[1736445354188,32.12135187,186.96,186.82,0.98336365]
[1736445354385,32.12135187,186.96,186.81,32.12135187]
[1736445356090,32.12135187,186.96,186.84,2.6764]
[1736445356493,32.12135187,186.96,186.81,32.12135187]
[1736445356696,2.6754,186.92,186.86,2.6761]
[1736445356892,32.12135187,186.96,186.86,2.6761]
[1736445357295,32.12135187,186.96,186.8,3.2717]
[1736445357595,32.12135187,186.93,186.8,3.2717]
[1736445358092,2.676,186.88,186.82,2.6766]
[1736445359618,2.6754,186.91,186.85,2.6763]
[1736445359790,32.12135187,186.99,186.81,32.12135187]
[1736445360797,32.12135187,186.96,186.81,32.12135187]
[1736445361498,19.79482901,187.01,186.85,19.79482901]
[1736445362095,19.79482901,186.98,186.8,3.2717]
[1736445362403,19.79482901,186.92,186.8,3.2717]
[1736445362797,19.79482901,186.95,186.8,3.2717]
[1736445362991,2.6757,186.9,186.84,2.6764]
[1736445363200,19.79482901,186.98,186.82,19.79482901]
[1736445363393,19.79482901,187.02,186.82,19.79482901]
[1736445363597,19.79482901,186.98,186.87,2.676]
[1736445363798,19.79482901,186.98,186.8,3.2717]
[1736445364100,2.6754,186.91,186.8,3.2717]
[1736445364499,2.6756,186.9,186.86,2.6761]
[1736445364696,19.79482901,186.95,186.8,3.2717]
[1736445365102,2.676,186.88,186.83,2.6766]
[1736445365303,19.79482901,186.92,186.8,3.2717]
[1736445365804,19.79482901,186.86,186.7,6.1]
[1736445366000,19.79482901,186.86,186.71,1.5832]
[1736445366200,2.6768,186.82,186.75,2.6777]
[1736445366402,19.79482901,186.86,186.75,2.6777]
[1736445366908,19.79482901,186.83,186.73,2.6779]
[1736445367109,19.79482901,186.83,186.71,1.5832]
[1736445367309,32.21342873,186.85,186.71,1.5832]
[1736445367599,2.6769,186.81,186.71,1.5832]
[1736445368103,2.6764,186.85,186.79,2.6771]
[1736445368609,2.6772,186.79,186.73,2.6779]
[1736445368803,32.21342873,186.85,186.71,1.5832]
[1736445369108,2.6766,186.83,186.76,2.6776]
[1736445369408,32.21342873,186.88,186.71,1.5832]
[1736445369608,2.6765,186.84,186.78,2.6772]
[1736445369907,32.21342873,186.88,186.78,2.6772]
[1736445370810,2.6766,186.84,186.79,2.6771]
[1736445371510,2.6766,186.84,186.71,1.5832]
[1736445371511,2.6769,186.82,186.71,1.5832]
[1736445371706,32.21342873,186.91,186.71,1.5832]
[1736445371905,32.21342873,186.91,186.72,0.98389695]
[1736445372099,32.21342873,186.91,186.71,1.5832]
[1736445372309,32.21342873,186.85,186.71,1.5832]
[1736445372707,32.21342873,186.88,186.71,1.5832]
[1736445372901,32.21342873,186.91,186.71,1.5832]
[1736445373108,32.21342873,186.85,186.71,1.5832]
[1736445373807,32.21342873,186.88,186.73,32.21342873]
[1736445374105,32.21342873,186.94,186.76,32.21342873]
[1736445374299,32.21342873,186.97,186.79,32.21342873]
[1736445374504,32.21342873,186.97,186.79,38.25342873]
[1736445374704,32.21342873,187.0,186.89,2.6757]
[1736445375210,32.21342873,187.0,186.82,32.21342873]
[1736445375211,2.675,186.95,186.87,2.6759]
[1736445375506,32.21342873,186.97,186.83,1.6443]
[1736445375712,32.21342873,187.0,186.83,1.6443]
[1736445376013,32.21342873,187.03,186.85,32.21342873]
[1736445376211,141.8817525,187.13,186.93,32.21342873]
[1736445376509,2.6735,187.05,186.99,2.6742]
[1736445376705,2.6735,187.05,186.93,38.25342873]
[1736445377413,32.21342873,187.1,186.94,1.567]
[1736445377414,2.6733,187.06,186.94,1.567]
[1736445377611,32.21342873,187.1,186.98,2.6743]
[1736445378113,32.21342873,187.07,186.94,1.567]